bitfinex-derivatives/quotes_BTCF0:USTF0_20251228
["timestamp","ask_amount","ask_price","bid_price","bid_amount"]
[1766893456881,0.02418436,87808.0,87801.0,0.057]
[1766893457065,0.02418436,87807.0,87801.0,0.057]
[1766893457268,0.02418436,87806.0,87801.0,0.057]
[1766893457483,0.00017083,87812.0,87801.0,0.057]
[1766893457679,0.02418506,87811.0,87801.0,0.057]
[1766893457880,0.02418506,87810.0,87801.0,0.057]
[1766893458072,0.02418506,87809.0,87801.0,0.057]
[1766893458271,0.02418506,87808.0,87801.0,0.057]
[1766893458578,0.02418506,87807.0,87801.0,0.057]
[1766893458780,0.02418506,87806.0,87801.0,0.057]
[1766893458979,0.00017083,87812.0,87801.0,0.057]
[1766893459279,0.02418535,87811.0,87801.0,0.057]
[1766893459477,0.02418535,87810.0,87801.0,0.057]
[1766893459676,0.02418535,87809.0,87801.0,0.057]
[1766893459882,0.02418535,87808.0,87801.0,0.057]
[1766893460184,0.02418535,87807.0,87801.0,0.057]
[1766893460478,0.02418535,87806.0,87801.0,0.057]
[1766893460679,0.00017083,87812.0,87801.0,0.057]
[1766893460879,0.02418554,87811.0,87801.0,0.057]
[1766893461080,0.02418554,87810.0,87801.0,0.057]
[1766893461378,0.02418554,87809.0,87801.0,0.057]
[1766893461579,0.02418554,87808.0,87801.0,0.057]
[1766893461774,0.02418554,87807.0,87801.0,0.057]
[1766893461975,0.02418554,87806.0,87801.0,0.057]
[1766893462176,0.00017083,87812.0,87801.0,0.057]
[1766893462376,0.02440058,87811.0,87801.0,0.057]
[1766893462675,0.02440058,87810.0,87801.0,0.057]
[1766893462878,0.02440058,87809.0,87801.0,0.057]
[1766893463079,0.02440058,87808.0,87801.0,0.057]
[1766893463276,0.02440058,87807.0,87801.0,0.057]
[1766893463483,0.02440058,87806.0,87801.0,0.057]
[1766893463683,0.00017083,87812.0,87801.0,0.057]
[1766893463883,0.02440055,87811.0,87801.0,0.057]
[1766893464084,0.02440055,87810.0,87801.0,0.057]
[1766893464284,0.02440055,87809.0,87801.0,0.057]
[1766893464484,0.02440055,87808.0,87801.0,0.057]
[1766893464687,0.02440055,87807.0,87801.0,0.057]
[1766893464886,0.02440055,87806.0,87801.0,0.057]
[1766893465087,0.00017083,87812.0,87801.0,0.057]
[1766893465389,0.0244005,87811.0,87801.0,0.057]
[1766893465582,0.0244005,87810.0,87801.0,0.057]
[1766893465880,0.0244005,87809.0,87801.0,0.057]
[1766893466080,0.0244005,87808.0,87801.0,0.057]
[1766893466280,0.0244005,87807.0,87801.0,0.057]
[1766893466488,0.0244005,87806.0,87801.0,0.057]
[1766893466786,0.00017083,87812.0,87801.0,0.057]
[1766893466988,0.02440062,87811.0,87801.0,0.057]
[1766893467189,0.02440062,87810.0,87801.0,0.057]
[1766893467487,0.02440062,87809.0,87801.0,0.057]
[1766893467786,0.02440062,87808.0,87801.0,0.057]
[1766893467991,0.02440062,87807.0,87801.0,0.057]
[1766893468175,0.02440062,87806.0,87801.0,0.057]
[1766893468380,0.00017083,87812.0,87801.0,0.057]
[1766893468580,0.02424711,87811.0,87801.0,0.057]
[1766893468782,0.02424711,87810.0,87801.0,0.057]
[1766893469087,0.02424711,87809.0,87801.0,0.057]
[1766893469289,0.02424711,87808.0,87801.0,0.057]
[1766893469490,0.02424711,87807.0,87801.0,0.057]
[1766893469690,0.02424711,87806.0,87801.0,0.057]
[1766893469887,0.00017083,87812.0,87801.0,0.057]
[1766893470190,0.0242471,87811.0,87801.0,0.057]
[1766893470388,0.0242471,87810.0,87801.0,0.057]
[1766893470589,0.0242471,87809.0,87801.0,0.057]
[1766893470785,0.0242471,87808.0,87801.0,0.057]
[1766893470983,0.0242471,87807.0,87801.0,0.057]
[1766893471283,0.0242471,87806.0,87801.0,0.057]
[1766893471484,0.00017083,87812.0,87801.0,0.057]
[1766893471684,0.02424706,87811.0,87801.0,0.057]
[1766893471982,0.02424706,87810.0,87801.0,0.057]
[1766893472184,0.02424706,87809.0,87801.0,0.057]
[1766893472385,0.02424706,87808.0,87801.0,0.057]
[1766893472585,0.02424706,87807.0,87801.0,0.057]
[1766893472885,0.02424706,87806.0,87801.0,0.057]
[1766893473187,0.00017083,87812.0,87801.0,0.057]
[1766893473485,0.02424706,87811.0,87801.0,0.057]
[1766893473685,0.02424706,87810.0,87801.0,0.057]
[1766893473885,0.02424706,87809.0,87801.0,0.057]
[1766893474089,0.02424706,87808.0,87801.0,0.057]
[1766893474286,0.02424706,87807.0,87801.0,0.057]
[1766893474594,0.01824706,87806.0,87798.0,0.0113976]
[1766893474794,0.00017083,87812.0,87799.0,0.057]
[1766893481499,0.00017083,87812.0,87794.0,0.00017083]
[1766893481500,0.1143034,87810.0,87794.0,0.00017083]
[1766893481698,0.0113963,87809.0,87790.0,0.0113986]
[1766893481898,0.0113967,87806.0,87790.0,0.0113986]
[1766893482098,0.0683967,87806.0,87790.0,0.0113986]
[1766893482702,0.0683967,87806.0,87787.0,0.0113991]
[1766893483897,0.057,87806.0,87787.0,0.0113991]
[1766893484202,0.011397,87804.0,87787.0,0.0113991]
[1766893486613,0.02448649,87803.0,87787.0,0.0113991]
[1766893486807,0.011397,87804.0,87787.0,0.0113991]
[1766893487008,0.02448647,87803.0,87787.0,0.0113991]
[1766893487209,0.011397,87804.0,87787.0,0.0113991]
[1766893487410,0.02448488,87803.0,87787.0,0.0113991]
[1766893487610,0.011397,87804.0,87787.0,0.0113991]
[1766893487804,0.02448488,87803.0,87787.0,0.0113991]
[1766893488003,0.011397,87804.0,87787.0,0.0113991]
[1766893488205,0.02448488,87803.0,87787.0,0.0113991]
[1766893488405,0.011397,87804.0,87787.0,0.0113991]
[1766893488703,0.02448354,87803.0,87787.0,0.0113991]
[1766893488904,0.011397,87804.0,87787.0,0.0113991]
[1766893489204,0.02448353,87803.0,87787.0,0.0113991]
[1766893489397,0.02448353,87802.0,87787.0,0.0113991]
[1766893489602,0.011397,87804.0,87787.0,0.0113991]
[1766893489802,0.02448236,87803.0,87787.0,0.0113991]
[1766893489997,0.02448236,87802.0,87787.0,0.0113991]
[1766893490203,0.02448236,87801.0,87787.0,0.0113991]
[1766893490399,0.011397,87804.0,87787.0,0.0113991]
[1766893490606,0.0244814,87803.0,87787.0,0.0113991]
[1766893490908,0.0244814,87802.0,87787.0,0.0113991]
[1766893491105,0.0244814,87801.0,87787.0,0.0113991]
[1766893491308,0.011397,87804.0,87787.0,0.0113991]
[1766893491508,0.02448049,87803.0,87787.0,0.0113991]
[1766893491708,0.02448049,87802.0,87787.0,0.0113991]
[1766893491908,0.02448049,87801.0,87787.0,0.0113991]
[1766893492213,0.011397,87804.0,87787.0,0.0113991]
[1766893492415,0.02447982,87803.0,87787.0,0.0113991]
[1766893492613,0.02447982,87802.0,87787.0,0.0113991]
[1766893492807,0.02447982,87801.0,87787.0,0.0113991]
[1766893493007,0.011397,87804.0,87787.0,0.0113991]
[1766893493206,0.02447982,87803.0,87787.0,0.0113991]
[1766893493407,0.02447982,87802.0,87787.0,0.0113991]
[1766893493616,0.02447982,87801.0,87787.0,0.0113991]
[1766893493818,0.011397,87804.0,87787.0,0.0113991]
[1766893494016,0.02447932,87803.0,87787.0,0.0113991]
[1766893494318,0.02447932,87802.0,87787.0,0.0113991]
[1766893494511,0.02447932,87801.0,87787.0,0.0113991]
[1766893494711,0.011397,87804.0,87787.0,0.0113991]
[1766893494914,0.02447903,87803.0,87787.0,0.0113991]
[1766893495115,0.02447903,87802.0,87787.0,0.0113991]
[1766893495314,0.0244788,87801.0,87787.0,0.0113991]
[1766893495615,0.011397,87804.0,87787.0,0.0113991]
[1766893495805,0.0244788,87803.0,87787.0,0.0113991]
[1766893496003,0.0244788,87802.0,87787.0,0.0113991]
[1766893496205,0.0244788,87801.0,87787.0,0.0113991]
[1766893496407,0.011397,87804.0,87787.0,0.0113991]
[1766893496717,0.0244787,87803.0,87787.0,0.0113991]
[1766893497016,0.0244787,87802.0,87787.0,0.0113991]
[1766893497216,0.0244787,87801.0,87787.0,0.0113991]
[1766893497418,0.011397,87804.0,87787.0,0.0113991]
[1766893497610,0.02447888,87803.0,87787.0,0.0113991]
[1766893497811,0.01847888,87802.0,87787.0,0.0113991]
[1766893498021,0.057,87805.0,87789.0,0.0113987]
[1766893499109,0.057,87805.0,87791.0,0.0113985]
[1766893500419,0.057,87805.0,87793.0,0.0113982]
[1766893500818,0.09688,87815.0,87789.0,0.09688]
[1766893501009,8.3e-07,87812.0,87789.0,0.09688]
[1766893501931,8.3e-07,87812.0,87792.0,0.00017059]
[1766893502320,8.3e-07,87812.0,87800.0,0.0113973]
[1766893502920,8.3e-07,87812.0,87802.0,0.0113971]
[1766893505937,8.3e-07,87812.0,87799.0,0.0113975]
[1766893506236,8.3e-07,87812.0,87799.0,0.1082775]
[1766893510241,8.3e-07,87812.0,87801.0,0.0113972]
[1766893513241,8.3e-07,87812.0,87802.0,0.057]
[1766893530664,0.02433719,87811.0,87802.0,0.057]
[1766893530858,8.3e-07,87812.0,87792.0,0.00017059]
[1766893530859,0.02433719,87810.0,87792.0,0.00017059]
[1766893531066,0.11429055,87802.0,87792.0,5.9e-07]
[1766893531363,0.02433719,87801.0,87792.0,0.05700059]
[1766893531557,0.02433719,87800.0,87792.0,0.05700059]
[1766893531757,0.02433719,87799.0,87792.0,0.05700059]
[1766893531958,0.02433719,87798.0,87792.0,0.05700059]
[1766893532158,0.02433719,87797.0,87792.0,0.05700059]
[1766893532361,0.0113976,87799.0,87792.0,0.05700059]
[1766893532666,0.02459758,87798.0,87789.0,0.057]
[1766893532860,0.02459758,87797.0,87789.0,0.057]
[1766893533166,0.11429055,87798.0,87789.0,0.057]
[1766893533366,0.12568815,87799.0,87789.0,0.057]
[1766893533565,0.02459057,87798.0,87789.0,0.057]
[1766893533765,0.12568815,87799.0,87789.0,0.057]
[1766893533965,0.02459057,87798.0,87789.0,0.057]
[1766893534162,0.12568815,87799.0,87789.0,0.057]
[1766893534364,0.02458488,87798.0,87789.0,0.057]
[1766893534561,0.12568815,87799.0,87789.0,0.057]
[1766893534761,0.02458488,87798.0,87789.0,0.057]
[1766893534966,0.12568815,87799.0,87789.0,0.057]
[1766893536171,0.12568815,87799.0,87780.0,0.0114]
[1766893536371,0.11429055,87790.0,87781.0,0.15388]
[1766893539870,0.11429055,87790.0,87782.0,0.057]
[1766893540073,0.00017083,87794.0,87783.0,0.09688]
[1766893540374,0.11429055,87792.0,87783.0,0.10997788]
[1766893540777,0.11429055,87792.0,87783.0,0.09688]
[1766893541077,0.10829055,87792.0,87783.0,0.09688]
[1766893541376,0.00017083,87794.0,87783.0,0.09688]
[1766893543982,0.00017083,87794.0,87780.0,0.0114]
[1766893544181,0.00017083,87794.0,87781.0,0.15388]
[1766893555386,0.11429055,87791.0,87781.0,0.15388]
[1766893556075,0.00017083,87794.0,87781.0,0.15388]
[1766893556788,0.00017083,87794.0,87782.0,0.0113998]
[1766893557488,0.00017083,87794.0,87784.0,0.0113995]
[1766893558590,0.02487176,87793.0,87784.0,0.0113995]
[1766893558791,0.00017083,87794.0,87784.0,0.0113995]
[1766893558990,0.02487176,87793.0,87784.0,0.0113995]
[1766893559181,0.00017083,87794.0,87784.0,0.0113995]
[1766893559480,0.02487179,87793.0,87784.0,0.0113995]
[1766893559682,0.00017083,87794.0,87784.0,0.0113995]
[1766893559881,0.02487179,87793.0,87784.0,0.0113995]
[1766893560181,0.00017083,87794.0,87784.0,0.0113995]
[1766893560385,0.0248718,87793.0,87784.0,0.0113995]
[1766893560684,0.00017083,87794.0,87784.0,0.0113995]
[1766893560982,0.02487179,87793.0,87784.0,0.0113995]
[1766893561281,0.00017083,87794.0,87784.0,0.0113995]
[1766893561481,0.0251593,87793.0,87784.0,0.0113995]
[1766893561683,0.00017083,87794.0,87784.0,0.0113995]
[1766893561880,0.02515931,87793.0,87784.0,0.0113995]
[1766893562085,0.00017083,87794.0,87783.0,0.0113996]
[1766893562285,0.01313937,87793.0,87783.0,0.0113996]
[1766893562585,0.00017083,87794.0,87783.0,0.0113996]
[1766893572691,0.00017083,87794.0,87785.0,0.0113993]
[1766893572890,0.00017083,87794.0,87786.0,0.057]
[1766893574405,0.0251095,87793.0,87786.0,0.057]
[1766893574595,0.00017083,87794.0,87786.0,0.057]
[1766893574794,0.0251095,87793.0,87786.0,0.057]
[1766893574995,0.00017083,87794.0,87786.0,0.057]
[1766893575204,0.0251095,87793.0,87786.0,0.057]
[1766893575502,0.00017083,87794.0,87786.0,0.057]
[1766893575714,0.0251095,87793.0,87786.0,0.057]
[1766893575901,0.00017083,87794.0,87786.0,0.057]
[1766893576093,0.0251095,87793.0,87786.0,0.057]
[1766893576392,0.00017083,87794.0,87786.0,0.057]
[1766893576592,0.0251096,87793.0,87786.0,0.057]
[1766893576806,0.00017083,87794.0,87786.0,0.057]
[1766893576996,0.0251096,87793.0,87786.0,0.057]
[1766893577196,0.00017083,87794.0,87786.0,0.057]
[1766893577496,0.02510961,87793.0,87786.0,0.057]
[1766893577696,0.00017083,87794.0,87786.0,0.057]
[1766893577895,0.0251096,87793.0,87786.0,0.057]
[1766893578101,0.00017083,87794.0,87786.0,0.057]
[1766893578300,0.02510962,87793.0,87786.0,0.057]
[1766893578503,0.00017083,87794.0,87786.0,0.057]
[1766893578703,0.02510962,87793.0,87786.0,0.057]
[1766893579001,0.00017083,87794.0,87786.0,0.057]
[1766893579202,0.02510962,87793.0,87786.0,0.057]
[1766893579402,0.00017083,87794.0,87786.0,0.057]
[1766893579604,0.02510962,87793.0,87786.0,0.057]
[1766893579802,0.02510962,87792.0,87786.0,0.057]
[1766893580002,0.02510962,87791.0,87786.0,0.057]
[1766893580202,0.00017083,87794.0,87786.0,0.057]
[1766893580414,0.02510962,87793.0,87786.0,0.057]
[1766893580598,0.02510962,87792.0,87786.0,0.057]
[1766893580791,0.02510962,87791.0,87786.0,0.057]
[1766893580998,0.00017083,87794.0,87786.0,0.057]
[1766893581307,0.02510963,87793.0,87786.0,0.057]
[1766893581504,0.02510963,87792.0,87786.0,0.057]
[1766893581694,0.02510963,87791.0,87786.0,0.057]
[1766893581897,0.00017083,87794.0,87786.0,0.057]
[1766893582097,0.02510927,87793.0,87786.0,0.057]
[1766893582301,0.02510927,87792.0,87786.0,0.057]
[1766893582506,0.02510927,87791.0,87786.0,0.057]
[1766893582807,0.00017083,87794.0,87786.0,0.057]
[1766893583008,0.02510926,87793.0,87786.0,0.057]
[1766893583208,0.02510926,87792.0,87786.0,0.057]
[1766893583404,0.02510926,87791.0,87786.0,0.057]
[1766893583608,0.00017083,87794.0,87786.0,0.057]
[1766893583905,0.02510924,87793.0,87786.0,0.057]
[1766893584105,0.02510924,87792.0,87786.0,0.057]
[1766893584309,0.02510924,87791.0,87786.0,0.057]
[1766893584510,0.00017083,87794.0,87786.0,0.057]
[1766893584713,0.02510924,87793.0,87786.0,0.057]
[1766893585011,0.02510924,87792.0,87786.0,0.057]
[1766893585211,0.02510924,87791.0,87786.0,0.057]
[1766893585411,0.00017083,87794.0,87786.0,0.057]
[1766893585709,0.02510928,87793.0,87786.0,0.057]
[1766893585907,0.02510928,87792.0,87786.0,0.057]
[1766893586111,0.02510928,87791.0,87786.0,0.057]
[1766893586310,0.00017083,87794.0,87786.0,0.057]
[1766893586510,0.02510928,87793.0,87786.0,0.057]
[1766893586712,0.02510928,87792.0,87786.0,0.057]
[1766893586914,0.02510928,87791.0,87786.0,0.057]
[1766893587103,0.00017083,87794.0,87786.0,0.057]
[1766893587302,0.02510925,87793.0,87786.0,0.057]
[1766893587502,0.02510925,87792.0,87786.0,0.057]
[1766893587707,0.02510925,87791.0,87786.0,0.057]
[1766893587916,0.00017083,87794.0,87786.0,0.057]
[1766893588113,0.02510932,87793.0,87786.0,0.057]
[1766893588313,0.02510932,87792.0,87786.0,0.057]
[1766893588617,0.02510932,87791.0,87786.0,0.057]
[1766893588913,0.00017083,87794.0,87786.0,0.057]
[1766893589214,0.0252332,87793.0,87786.0,0.057]
[1766893589417,0.0252332,87792.0,87786.0,0.057]
[1766893589714,0.00017083,87794.0,87786.0,0.057]
[1766893589918,0.0252332,87793.0,87786.0,0.057]
[1766893590115,0.00017083,87794.0,87786.0,0.057]
[1766893590308,0.0252332,87793.0,87786.0,0.057]
[1766893590508,0.00017083,87794.0,87786.0,0.057]
[1766893592115,0.0252332,87793.0,87786.0,0.057]
[1766893593520,0.00017083,87794.0,87786.0,0.057]
[1766893595218,0.0252332,87793.0,87786.0,0.057]
[1766893595421,0.00017083,87794.0,87786.0,0.057]
[1766893595618,0.0252332,87793.0,87786.0,0.057]
[1766893595814,0.00017083,87794.0,87786.0,0.057]
[1766893596013,0.02523319,87793.0,87786.0,0.057]
[1766893596216,0.00017083,87794.0,87786.0,0.057]
[1766893596418,0.0252332,87793.0,87786.0,0.057]
[1766893596615,0.00017083,87794.0,87786.0,0.057]
[1766893596817,0.0252332,87793.0,87786.0,0.057]
[1766893597017,0.00017083,87794.0,87786.0,0.057]
[1766893597220,0.0252332,87793.0,87786.0,0.057]
[1766893597517,0.00017083,87794.0,87786.0,0.057]
[1766893597822,0.0252332,87793.0,87786.0,0.057]
[1766893598013,0.00017083,87794.0,87786.0,0.057]
[1766893598214,0.0252332,87793.0,87786.0,0.057]
[1766893598415,0.00017083,87794.0,87786.0,0.057]
[1766893598620,0.02523319,87793.0,87786.0,0.057]
[1766893598820,0.00017083,87794.0,87786.0,0.057]
[1766893599020,0.02523319,87793.0,87786.0,0.057]
[1766893599223,0.00017083,87794.0,87786.0,0.057]
[1766893599523,0.0252332,87793.0,87786.0,0.057]
[1766893599725,0.00017083,87794.0,87786.0,0.057]
[1766893599923,0.0252332,87793.0,87786.0,0.057]
[1766893600117,0.00017083,87794.0,87786.0,0.057]
[1766893600316,0.0252332,87793.0,87786.0,0.057]
[1766893600516,0.00017083,87794.0,87786.0,0.057]
[1766893600716,0.0252332,87793.0,87786.0,0.057]
[1766893600920,0.00017083,87794.0,87786.0,0.057]
[1766893601123,0.0252332,87793.0,87786.0,0.057]
[1766893601322,0.00017083,87794.0,87786.0,0.057]
[1766893601520,0.0252332,87793.0,87786.0,0.057]
[1766893601719,0.00017083,87794.0,87786.0,0.057]
[1766893601920,0.00017083,87794.0,87786.0,0.0683992]
[1766893601921,0.0252332,87793.0,87786.0,0.0683992]
[1766893602123,0.00017083,87794.0,87786.0,0.057]
[1766893602323,0.0252332,87793.0,87786.0,0.057]
[1766893602522,0.00017083,87794.0,87786.0,0.057]
[1766893602723,0.0252332,87793.0,87786.0,0.057]
[1766893602927,0.00017083,87794.0,87786.0,0.057]
[1766893603124,0.0252332,87793.0,87786.0,0.057]
[1766893603326,0.00017083,87794.0,87786.0,0.057]
[1766893603622,0.02523319,87793.0,87786.0,0.057]
[1766893603823,0.00017083,87794.0,87786.0,0.057]
[1766893604024,0.02523318,87793.0,87786.0,0.057]
[1766893604322,0.00017083,87794.0,87786.0,0.057]
[1766893604522,0.02523318,87793.0,87786.0,0.057]
[1766893604724,0.00017083,87794.0,87786.0,0.057]
[1766893604925,0.02523318,87793.0,87786.0,0.057]
[1766893605122,0.00017083,87794.0,87786.0,0.057]
[1766893605324,0.02523318,87793.0,87786.0,0.057]
[1766893605526,0.00017083,87794.0,87786.0,0.057]
[1766893605718,0.02523318,87793.0,87786.0,0.057]
[1766893605918,0.00017083,87794.0,87786.0,0.057]
[1766893606119,0.02523313,87793.0,87786.0,0.057]
[1766893606320,0.00017083,87794.0,87786.0,0.057]
[1766893606522,0.02523314,87793.0,87786.0,0.057]
[1766893606723,0.00017083,87794.0,87786.0,0.057]
[1766893606922,0.02523314,87793.0,87786.0,0.057]
[1766893607123,0.00017083,87794.0,87786.0,0.057]
[1766893607324,0.02523313,87793.0,87786.0,0.057]
[1766893607526,0.00017083,87794.0,87786.0,0.057]
[1766893607725,0.02523312,87793.0,87786.0,0.057]
[1766893607927,0.00017083,87794.0,87786.0,0.057]
[1766893608127,0.02523312,87793.0,87786.0,0.057]
[1766893608330,0.00017083,87794.0,87786.0,0.057]
[1766893608530,0.02523312,87793.0,87786.0,0.057]
[1766893608731,0.00017083,87794.0,87786.0,0.057]
[1766893608935,0.02523312,87793.0,87786.0,0.057]
[1766893609234,0.00017083,87794.0,87786.0,0.057]
[1766893609431,0.02523313,87793.0,87786.0,0.057]
[1766893609636,0.00017083,87794.0,87786.0,0.057]
[1766893609828,0.02523314,87793.0,87786.0,0.057]
[1766893610030,0.00017083,87794.0,87786.0,0.057]
[1766893610228,0.02523313,87793.0,87786.0,0.057]
[1766893610443,0.00017083,87794.0,87786.0,0.057]
[1766893610635,0.02523312,87793.0,87786.0,0.057]
[1766893610830,0.00017083,87794.0,87786.0,0.057]
[1766893611034,0.02523312,87793.0,87786.0,0.057]
[1766893611234,0.00017083,87794.0,87786.0,0.057]
[1766893611435,0.02523312,87793.0,87786.0,0.057]
[1766893611634,0.00017083,87794.0,87786.0,0.057]
[1766893611836,0.02523312,87793.0,87786.0,0.057]
[1766893612037,0.00017083,87794.0,87786.0,0.057]
[1766893612236,0.02523312,87793.0,87786.0,0.057]
[1766893612437,0.00017083,87794.0,87786.0,0.057]
[1766893612637,0.02523312,87793.0,87786.0,0.057]
[1766893612836,0.00017083,87794.0,87786.0,0.057]
[1766893613036,0.02523312,87793.0,87786.0,0.057]
[1766893613241,0.00017083,87794.0,87786.0,0.057]
[1766893613432,0.02523312,87793.0,87786.0,0.057]
[1766893613633,0.00017083,87794.0,87786.0,0.057]
[1766893613841,0.02523312,87793.0,87786.0,0.057]
[1766893614035,0.00017083,87794.0,87786.0,0.057]
[1766893614234,0.02523312,87793.0,87786.0,0.057]
[1766893614441,0.00017083,87794.0,87786.0,0.057]
[1766893614640,0.02523311,87793.0,87786.0,0.057]
[1766893614843,0.00017083,87794.0,87786.0,0.057]
[1766893615042,0.02523311,87793.0,87786.0,0.057]
[1766893615244,0.00017083,87794.0,87786.0,0.057]
[1766893615542,0.02523311,87793.0,87786.0,0.057]
[1766893615742,0.00017083,87794.0,87786.0,0.057]
[1766893616041,0.02523311,87793.0,87786.0,0.057]
[1766893616241,0.00017083,87794.0,87786.0,0.057]
[1766893616443,0.02523311,87793.0,87786.0,0.057]
[1766893616641,0.00017083,87794.0,87786.0,0.057]
[1766893616839,0.02523312,87793.0,87786.0,0.057]
[1766893617038,0.00017083,87794.0,87786.0,0.057]
[1766893617239,0.02523312,87793.0,87786.0,0.057]
[1766893617440,0.00017083,87794.0,87786.0,0.057]
[1766893617741,0.02523324,87793.0,87786.0,0.057]
[1766893618040,0.00017083,87794.0,87786.0,0.057]
[1766893618343,0.02523324,87793.0,87786.0,0.057]
[1766893618538,0.00017083,87794.0,87786.0,0.057]
[1766893618739,0.02523644,87793.0,87786.0,0.057]
[1766893618941,0.00017083,87794.0,87786.0,0.057]
[1766893619241,0.02523652,87793.0,87786.0,0.057]
[1766893619441,0.00017083,87794.0,87786.0,0.057]
[1766893619641,0.02523669,87793.0,87786.0,0.057]
[1766893619843,0.02523669,87792.0,87786.0,0.057]
[1766893620041,0.02523669,87791.0,87786.0,0.057]
[1766893620243,0.00017083,87794.0,87786.0,0.057]
[1766893620446,0.02523669,87793.0,87786.0,0.057]
[1766893620748,9e-08,87792.0,87788.0,0.0113989]
[1766893620947,0.00017083,87794.0,87788.0,0.0113989]
[1766893622442,0.00017083,87794.0,87786.0,0.057]
[1766893622633,0.00017083,87794.0,87787.0,0.0113991]
[1766893623346,0.0113972,87802.0,87787.0,0.0113991]
[1766893624049,0.057,87804.0,87787.0,0.0113991]
[1766893624246,0.0130963,87803.0,87787.0,0.01156993]
[1766893624745,0.0130963,87803.0,87787.0,0.00017083]
[1766893624950,0.0113971,87803.0,87787.0,0.00017083]
[1766893625147,0.0113971,87803.0,87788.0,0.011399]
[1766893625660,0.0130963,87802.0,87788.0,0.011399]
[1766893628769,0.06856783,87804.0,87788.0,0.011399]
[1766893628961,0.0130963,87803.0,87788.0,0.011399]
[1766893629361,0.06856783,87804.0,87788.0,0.011399]
[1766893629561,0.0130963,87803.0,87788.0,0.011399]
[1766893629964,0.06856783,87804.0,87788.0,0.011399]
[1766893630165,0.0130963,87803.0,87788.0,0.011399]
[1766893630563,0.06856783,87804.0,87788.0,0.011399]
[1766893630768,0.0130963,87803.0,87788.0,0.011399]
[1766893631263,0.06856783,87804.0,87788.0,0.011399]
[1766893631463,0.0130963,87803.0,87788.0,0.011399]
[1766893632269,0.06856783,87804.0,87788.0,0.011399]
[1766893632470,0.0130963,87803.0,87788.0,0.011399]
[1766893632771,0.02512756,87802.0,87788.0,0.011399]
[1766893633070,0.02512756,87801.0,87788.0,0.011399]
[1766893633271,0.02512756,87800.0,87788.0,0.011399]
[1766893633569,0.06856783,87804.0,87788.0,0.011399]
[1766893633570,0.02512756,87799.0,87788.0,0.011399]
[1766893633759,0.02512756,87798.0,87788.0,0.011399]
[1766893633958,0.02512756,87797.0,87788.0,0.011399]
[1766893634160,0.02512756,87796.0,87788.0,0.011399]
[1766893634371,0.02512756,87795.0,87788.0,0.011399]
[1766893634673,0.02512756,87794.0,87788.0,0.011399]
[1766893634865,0.02512756,87793.0,87788.0,0.011399]
[1766893635065,0.06856783,87804.0,87788.0,0.011399]
[1766893635266,0.02512749,87803.0,87788.0,0.011399]
[1766893635468,0.02512749,87802.0,87788.0,0.011399]
[1766893635767,0.02512749,87801.0,87788.0,0.011399]
[1766893636068,0.02512749,87800.0,87788.0,0.011399]
[1766893636366,0.02512749,87799.0,87788.0,0.011399]
[1766893636566,0.02512749,87798.0,87787.0,0.00017083]
[1766893636767,0.02512749,87797.0,87787.0,0.00017083]
[1766893636967,0.02512749,87796.0,87787.0,0.00017083]
[1766893637165,0.02512749,87795.0,87787.0,0.00017083]
[1766893637373,0.02512749,87794.0,87787.0,0.00017083]
[1766893637576,0.02512749,87793.0,87787.0,0.00017083]
[1766893637771,0.0130963,87798.0,87787.0,0.00017083]
[1766893637971,0.02512751,87797.0,87787.0,0.00017083]
[1766893638170,0.02512751,87796.0,87787.0,0.00017083]
[1766893638374,0.02512751,87795.0,87787.0,0.00017083]
[1766893638575,0.02512751,87794.0,87787.0,0.00017083]
[1766893638874,0.02512751,87793.0,87787.0,0.00017083]
[1766893639075,0.0130963,87798.0,87787.0,0.00017083]
[1766893639270,0.02512755,87797.0,87787.0,0.00017083]
[1766893639470,0.02512755,87796.0,87787.0,0.00017083]
[1766893639672,0.02512755,87795.0,87787.0,0.00017083]
[1766893639972,0.02512755,87794.0,87787.0,0.00017083]
[1766893640170,0.02512755,87793.0,87787.0,0.00017083]
[1766893640373,0.0130963,87798.0,87787.0,0.00017083]
[1766893640574,0.02512762,87797.0,87787.0,0.00017083]
[1766893640773,0.02512762,87796.0,87787.0,0.00017083]
[1766893640975,0.02512762,87795.0,87787.0,0.00017083]
[1766893641174,0.02512762,87794.0,87787.0,0.00017083]
[1766893641374,0.02512762,87793.0,87787.0,0.00017083]
[1766893641575,0.0130963,87798.0,87787.0,0.00017083]
[1766893641776,0.02512768,87797.0,87787.0,0.00017083]
[1766893641976,0.02512768,87796.0,87787.0,0.00017083]
[1766893642172,0.02512768,87795.0,87787.0,0.00017083]
[1766893642477,0.02512768,87794.0,87787.0,0.00017083]
[1766893642677,0.02512768,87793.0,87787.0,0.00017083]
[1766893642877,0.0113972,87802.0,87787.0,0.00017083]
[1766893643077,0.02512773,87801.0,87787.0,0.00017083]
[1766893643278,0.02512773,87800.0,87787.0,0.00017083]
[1766893643580,0.02512773,87799.0,87787.0,0.00017083]
[1766893643878,0.02512773,87798.0,87787.0,0.00017083]
[1766893644075,0.02512773,87797.0,87787.0,0.00017083]
[1766893644268,0.02512773,87796.0,87787.0,0.00017083]
[1766893644471,0.02512773,87795.0,87787.0,0.00017083]
[1766893644671,0.02512773,87794.0,87787.0,0.00017083]
[1766893644872,0.02512773,87793.0,87787.0,0.00017083]
[1766893645072,0.0113972,87802.0,87787.0,0.00017083]
[1766893645272,0.02512794,87801.0,87787.0,0.00017083]
[1766893645480,0.02512794,87800.0,87787.0,0.00017083]
[1766893645681,0.02512794,87799.0,87787.0,0.00017083]
[1766893645882,0.02512794,87798.0,87787.0,0.00017083]
[1766893646084,0.02512794,87797.0,87787.0,0.00017083]
[1766893646286,0.02512794,87796.0,87787.0,0.00017083]
[1766893646479,0.02512794,87795.0,87787.0,0.00017083]
[1766893646782,0.02512794,87794.0,87787.0,0.00017083]
[1766893646983,0.02512794,87793.0,87787.0,0.00017083]
[1766893647282,0.0113972,87802.0,87787.0,0.00017083]